bitfinex-derivatives/quotes_BNBF0:USTF0_20250810
["timestamp","ask_amount","ask_price","bid_price","bid_amount"]
[1754800908201,0.21332941,816.82,816.77,1.6396099]
[1754800910301,0.21332941,816.82,816.76,1.6396099]
[1754800913407,0.21332941,816.82,816.77,1.6396099]
[1754800914704,0.21332941,816.82,816.74,1.6396099]
[1754800915004,0.21332941,816.82,816.75,1.6396099]
[1754800915203,0.21332941,816.82,816.74,1.6396099]
[1754800916405,0.21332941,816.82,816.76,1.6396099]
[1754800917703,0.21332941,816.82,816.67,1.6396099]
[1754800917908,0.21332941,816.82,816.73,1.08971726]
[1754800918908,0.21332941,816.82,816.77,1.08971726]
[1754800919108,0.21332941,816.82,816.72,1.6396099]
[1754800919304,0.21332941,816.82,816.67,1.6396099]
[1754800919509,0.21332941,816.82,816.66,1.6396099]
[1754800919805,0.21332941,816.82,816.65,1.6396099]
[1754800920008,0.21332941,816.82,816.11,2.73234571]
[1754800920009,0.21332941,816.82,816.64,1.6396099]
[1754800922108,0.21332941,816.82,816.65,1.6396099]
[1754800922304,0.21332941,816.82,816.64,1.6396099]
[1754800922609,0.21332941,816.82,816.65,1.6396099]
[1754800924306,0.21332941,816.82,816.64,1.6396099]
[1754800928209,0.21332941,816.82,816.6,1.6396099]
[1754800929012,0.21332941,816.82,816.62,0.59191175]
[1754800929812,0.21332941,816.82,816.04,2.73234571]
[1754800931516,0.21332941,816.82,815.62,2.73234571]
[1754800931716,0.21332941,816.82,815.63,1.00383622]
[1754800931917,0.21332941,816.82,815.62,2.73234571]
[1754800932218,0.21332941,816.82,815.63,1.00383619]
[1754800932411,0.21332941,816.82,815.64,1.0038281]
[1754800932616,0.21332941,816.82,815.65,1.0038281]
[1754800932812,0.21332941,816.82,815.66,1.0038281]
[1754800933013,0.21332941,816.82,815.67,1.0038281]
[1754800933314,0.21332941,816.82,815.68,1.0038281]
[1754800933514,0.21332941,816.82,815.69,1.0038281]
[1754800933715,0.21332941,816.82,815.7,1.0038281]
[1754800933915,0.21332941,816.82,815.61,1.559]
[1754800933916,0.21332941,816.82,815.71,1.0038281]
[1754800934115,0.21332941,816.82,815.72,1.0038281]
[1754800934318,0.21332941,816.82,815.73,1.0038281]
[1754800934519,0.21332941,816.82,815.74,1.0038281]
[1754800934820,0.21332941,816.82,815.61,1.559]
[1754800935115,0.21332941,816.82,815.62,1.0037779]
[1754800935315,0.21332941,816.82,815.63,1.0037779]
[1754800935518,0.21332941,816.82,815.64,1.0037779]
[1754800935722,0.21332941,816.82,815.65,1.0037779]
[1754800935918,0.21332941,816.82,815.66,1.0037779]
[1754800936116,0.21332941,816.82,815.67,1.0037779]
[1754800936415,0.21332941,816.82,815.61,1.559]
[1754800936618,0.21332941,816.82,815.62,1.00387478]
[1754800936815,0.21332941,816.82,815.63,1.00387478]
[1754800937020,0.21332941,816.82,815.64,1.00387478]
[1754800937320,0.21332941,816.82,815.65,1.00387478]
[1754800937520,0.21332941,816.82,815.66,1.00387478]
[1754800937820,0.21332941,816.82,815.67,1.00387478]
[1754800938021,0.21332941,816.82,815.68,1.00387478]
[1754800938219,0.21332941,816.82,815.69,1.00387478]
[1754800938517,0.21332941,816.82,815.7,1.00387478]
[1754800938721,0.21332941,816.82,815.71,1.00387478]
[1754800938919,0.21332941,816.82,815.72,1.00387478]
[1754800939118,0.21332941,816.82,815.73,1.00387478]
[1754800939321,0.21332941,816.82,815.61,1.559]
[1754800939322,0.21332941,816.82,815.74,1.00387478]
[1754800939517,0.21332941,816.82,815.75,1.00387478]
[1754800939722,0.21332941,816.82,815.61,1.559]
[1754800939921,0.21332941,816.82,815.62,1.00389397]
[1754800940120,0.21332941,816.82,815.63,1.00389397]
[1754800940323,0.21332941,816.82,815.64,1.00389397]
[1754800940522,0.21332941,816.82,815.65,1.00389397]
[1754800940823,0.21332941,816.82,815.66,1.00389397]
[1754800941020,0.21332941,816.82,815.67,1.00389397]
[1754800941224,0.21332941,816.82,815.68,1.00389397]
[1754800941421,0.21332941,816.82,815.69,1.00389397]
[1754800941625,0.21332941,816.82,815.7,1.00389397]
[1754800941826,0.21332941,816.82,815.71,1.00389397]
[1754800942022,0.21332941,816.82,815.72,1.00389397]
[1754800942228,0.21332941,816.82,815.61,1.559]
[1754800942523,0.21332941,816.82,815.79,2.73234571]
[1754800943925,0.21332941,816.82,815.8,2.73234571]
[1754800945625,0.21332941,816.82,816.07,2.73234571]
[1754800948526,0.21332941,816.82,815.96,2.73234571]
[1754800949034,0.21332941,816.82,816.76,1.0887185]
[1754800951335,0.21332941,816.82,816.75,1.0887185]
[1754800951536,0.21332941,816.82,816.76,1.0887185]
[1754800951736,0.21332941,816.82,816.77,1.0887185]
[1754800952036,0.21332941,816.82,816.72,1.0887185]
[1754800955937,0.21332941,816.82,816.71,1.0887185]
[1754800956339,0.21332941,816.82,816.7,1.0887185]
[1754800956836,0.21332941,816.82,816.71,1.0887185]
[1754800958040,0.21332941,816.82,816.73,1.0887185]
[1754800958237,0.21332941,816.82,816.72,0.4164314]
[1754800958438,0.21332941,816.82,816.54,1.63307775]
[1754800958843,0.21332941,816.82,816.53,1.63307775]
[1754800959042,0.21332941,816.82,816.51,1.63307775]
[1754800959244,0.21332941,816.82,816.54,1.63307775]
[1754800961343,0.21332941,816.82,816.55,1.63307775]
[1754800961546,0.21332941,816.82,816.56,1.63307775]
[1754800962142,0.21332941,816.82,816.52,1.63307775]
[1754800962641,0.21332941,816.82,816.51,1.63307775]
[1754800963743,0.21332941,816.82,816.39,1.63307775]
[1754800965251,0.21332941,816.82,816.4,1.63307775]
[1754800966252,0.21332941,816.82,816.41,1.63307775]
[1754800966452,0.21332941,816.82,816.4,1.63307775]
[1754800968253,0.21332941,816.82,816.41,1.63307775]
[1754800968453,0.21332941,816.82,816.42,1.63307775]
[1754800969253,0.21332941,816.82,816.43,1.63307775]
[1754800971256,0.21332941,816.82,815.63,2.73234571]
[1754800971257,0.21332941,816.82,816.44,1.63307775]
[1754800972255,0.21332941,816.82,816.47,1.63307775]
[1754800973256,0.21332941,816.82,816.49,1.63307775]
[1754800973457,0.21332941,816.82,816.5,1.63307775]
[1754800973654,0.21332941,816.82,816.61,1.63307775]
[1754800974154,0.21332941,816.82,816.64,1.63307775]
[1754800974758,0.21332941,816.82,816.63,1.63307775]
[1754800975057,0.21332941,816.82,816.64,1.63307775]
[1754800975257,0.21332941,816.82,816.65,1.63307775]
[1754800975857,0.21332941,816.82,816.64,1.63307775]
[1754800976158,0.21332941,816.82,816.66,1.63307775]
[1754800976354,0.21332941,816.82,816.69,1.63307775]
[1754800977260,0.21332941,816.82,816.72,1.63307775]
[1754800977461,0.21332941,816.82,816.72,0.64710031]
[1754800977861,0.21332941,816.82,816.1,2.73234571]
[1754800978160,0.21332941,816.82,816.16,2.73234571]
[1754800978757,0.21332941,816.82,816.25,2.73234571]
[1754800979362,0.21332941,816.82,815.85,2.73234571]
[1754800979563,0.21332941,816.82,815.86,1.03043379]
[1754800979764,0.21332941,816.82,815.87,1.03043379]
[1754800979965,0.21332941,816.82,815.88,1.03043379]
[1754800980165,0.21332941,816.82,815.89,1.03043379]
[1754800980364,0.21332941,816.82,815.9,1.03043374]
[1754800980564,0.21332941,816.82,815.91,1.03043374]
[1754800980763,0.21332941,816.82,815.92,1.03043374]
[1754800980963,0.21332941,816.82,815.93,1.03043374]
[1754800981166,0.21332941,816.82,815.94,1.03043374]
[1754800981464,0.21332941,816.82,815.95,1.03043374]
[1754800981662,0.21332941,816.82,815.96,1.03043374]
[1754800981867,0.21332941,816.82,815.97,1.03043374]
[1754800982167,0.21332941,816.82,815.98,1.03043374]
[1754800982368,0.21332941,816.82,815.99,1.03043374]
[1754800982568,0.21332941,816.82,816.0,1.03043374]
[1754800982763,0.21332941,816.82,815.63,2.73234571]
[1754800982764,0.21332941,816.82,816.01,1.03043374]
[1754800982968,0.21332941,816.82,816.02,1.03043374]
[1754800983166,0.21332941,816.82,816.03,1.03043374]
[1754800983366,0.21332941,816.82,816.04,1.03043374]
[1754800983564,0.21332941,816.82,816.05,1.03043374]
[1754800983764,0.21332941,816.82,816.06,1.03043374]
[1754800983962,0.21332941,816.82,815.41,1.109]
[1754800984166,0.21332941,816.82,815.42,1.030114]
[1754800984472,0.21332941,816.82,815.43,1.030114]
[1754800984666,0.21332941,816.82,815.44,1.030114]
[1754800984863,0.21332941,816.82,815.45,1.030114]
[1754800985067,0.21332941,816.82,815.46,1.030114]
[1754800985365,0.21332941,816.82,815.47,1.030114]
[1754800985563,0.21332941,816.82,815.48,1.030114]
[1754800985765,0.21332941,816.82,815.49,1.030114]
[1754800985964,0.21332941,816.82,815.5,1.030114]
[1754800986167,0.21332941,816.82,815.51,1.030114]
[1754800986369,0.21332941,816.82,815.52,1.030114]
[1754800986668,0.21332941,816.82,815.53,1.030114]
[1754800986972,0.21332941,816.82,815.54,1.030114]
[1754800987170,0.21332941,816.82,815.55,1.030114]
[1754800987471,0.21332941,816.82,815.56,1.030114]
[1754800987669,0.21332941,816.82,815.57,1.030114]
[1754800987970,0.21332941,816.82,815.58,1.030114]
[1754800988170,0.21332941,816.82,816.53,1.09103177]
[1754800989772,0.21332941,816.82,816.57,1.09103177]
[1754800992269,0.21332941,816.82,816.77,1.09103177]
[1754800992674,0.21332941,816.82,816.65,1.09103177]
[1754800993575,0.21332941,816.82,816.64,1.09103177]
[1754800994975,0.21332941,816.82,816.63,1.09103177]
[1754800999079,0.21332941,816.82,816.64,1.09103177]
[1754801000576,0.21332941,816.82,816.39,1.09103177]
[1754801000782,0.21332941,816.82,816.43,1.09103177]
[1754801000982,0.21332941,816.82,816.74,1.09103177]
[1754801001279,0.21332941,816.82,816.65,1.6366535]
[1754801002180,0.21332941,816.82,816.76,1.09096027]
[1754801002382,0.21332941,816.82,816.77,1.09096027]
[1754801002586,0.21332941,816.82,816.77,0.40545906]
[1754801002786,0.21332941,816.82,816.58,1.6366535]
[1754801003287,0.21332941,816.82,816.6,1.6366535]
[1754801003484,0.21332941,816.82,816.63,1.6366535]
[1754801003688,0.21332941,816.82,816.61,1.6366535]
[1754801004389,0.21332941,816.82,816.62,1.6366535]
[1754801006794,0.21332941,816.82,816.61,1.6366535]
[1754801010796,0.21332941,816.82,816.63,1.6366535]
[1754801011197,0.21332941,816.82,816.65,1.6366535]
[1754801012197,0.21332941,816.82,816.66,1.6366535]
[1754801012493,0.21332941,816.82,816.66,0.63118067]
[1754801012993,0.21332941,816.82,816.01,2.73234571]
[1754801013199,0.21332941,816.82,816.0,2.73234571]
[1754801013407,0.5,817.13,816.0,2.73234571]
[1754801013598,0.21327058,816.62,816.0,2.73234571]
[1754801013795,0.5,817.13,816.09,2.73234571]
[1754801014200,0.21327058,816.47,816.0,2.73234571]
[1754801014400,0.5,817.13,816.0,2.73234571]
[1754801014796,0.5,817.13,815.97,2.73234571]
[1754801015198,0.5,817.13,815.88,2.73234571]
[1754801016802,0.5,817.13,815.91,2.73234571]
[1754801017603,0.213283,816.83,815.91,2.73234571]
[1754801017804,0.213283,816.83,815.89,2.73234571]
[1754801018299,0.213283,816.83,815.9,2.73234571]
[1754801019404,0.213283,816.83,815.95,2.73234571]
[1754801019905,0.213283,816.83,815.94,2.73234571]
[1754801021007,0.213283,816.83,815.96,2.73234571]
[1754801022506,0.213283,816.83,815.87,2.73234571]
[1754801022810,0.213283,816.83,815.88,1.02265873]
[1754801023006,0.213283,816.83,815.89,3.75500444]
[1754801023210,0.213283,816.83,815.9,1.02265873]
[1754801023510,0.213283,816.83,815.89,2.73234571]
[1754801023710,0.213283,816.83,815.9,1.02266037]
[1754801023910,0.213283,816.83,815.89,2.73234571]
[1754801024507,0.213283,816.83,815.95,2.73234571]
[1754801025112,0.213283,816.83,816.12,2.73234571]
[1754801026108,0.213283,816.83,816.07,2.73234571]
[1754801028314,0.213283,816.83,816.08,2.73234571]
[1754801028712,0.213283,816.83,816.12,2.73234571]
[1754801029214,0.213283,816.83,816.13,2.73234571]
[1754801030714,0.213283,816.83,815.93,2.73234571]
[1754801030916,0.213283,816.83,815.81,2.73234571]
[1754801031617,0.213283,816.83,815.91,2.73234571]
[1754801032515,0.213283,816.83,816.8,1.093766]
[1754801032717,0.213283,816.83,816.65,1.19979508]
[1754801033817,0.213283,816.83,816.01,2.73234571]
[1754801034216,0.213283,816.83,816.04,2.73234571]
[1754801035620,0.213283,816.83,816.03,2.73234571]
[1754801036720,0.213283,816.83,815.93,2.73234571]
[1754801037721,0.213283,816.83,815.89,2.73234571]
[1754801038320,0.213283,816.83,815.83,2.73234571]
[1754801039420,0.213283,816.83,815.82,2.73234571]
[1754801039821,0.213283,816.83,815.83,2.73234571]
[1754801042321,0.213283,816.83,815.75,2.73234571]
[1754801045026,0.213283,816.83,815.69,2.73234571]
[1754801045526,0.213283,816.83,815.63,2.73234571]
[1754801046020,0.213283,816.83,815.36,3.84070087]
[1754801046021,0.213283,816.83,815.62,2.73234571]
[1754801046622,0.213283,816.83,815.67,2.73234571]
[1754801047527,0.213283,816.83,815.71,2.73234571]
[1754801048523,0.213283,816.83,815.7,2.73234571]
[1754801049227,0.213283,816.83,815.61,2.73234571]
[1754801049728,0.213283,816.83,815.64,2.73234571]
[1754801050729,0.213283,816.83,815.63,2.73234571]
[1754801052229,0.213283,816.83,815.66,2.73234571]
[1754801052730,0.213283,816.83,816.35,1.6382989]
[1754801054426,0.213283,816.83,816.36,1.6382989]
[1754801055433,0.213283,816.83,816.39,1.6382989]
[1754801056334,0.213283,816.83,816.38,1.6382989]
[1754801058736,0.213283,816.83,816.45,0.63591518]
[1754801059337,0.213283,816.83,815.92,2.73234571]
[1754801059533,0.213283,816.83,815.89,2.73234571]
[1754801059931,0.213283,816.83,815.9,2.73234571]
[1754801062647,0.213283,816.83,816.52,1.09109773]
[1754801063247,0.213283,816.83,816.4,1.09109773]
[1754801067045,0.213283,816.83,816.39,1.09109773]
[1754801067445,0.213283,816.83,816.4,1.09109773]
[1754801067849,0.213283,816.83,816.32,1.09109773]
[1754801068150,0.213283,816.83,816.4,1.09109773]
[1754801068650,0.213283,816.83,816.39,1.09109773]
[1754801071150,0.213283,816.83,815.22,2.73234571]
[1754801071151,0.213283,816.83,816.43,1.09109773]
[1754801072150,0.213283,816.83,816.28,1.09109773]
[1754801074152,0.213283,816.83,816.29,1.09109773]
[1754801075850,0.213283,816.83,816.3,1.09109773]
[1754801076054,0.213283,816.83,816.31,1.09109773]
[1754801076248,0.213283,816.83,816.33,1.09109773]
[1754801076553,0.213283,816.83,816.34,1.09109773]
[1754801076749,0.213283,816.83,815.35,2.73234571]
[1754801076750,0.213283,816.83,816.33,1.09109773]
[1754801077754,0.213283,816.83,816.4,1.09109773]
[1754801078451,0.213283,816.83,816.41,1.09109773]
[1754801078950,0.213283,816.83,816.44,1.09109773]
[1754801079755,0.213283,816.83,816.45,1.09109773]
[1754801080851,0.213283,816.83,816.46,1.09109773]
[1754801082252,0.213283,816.83,816.59,1.09109773]
[1754801082455,0.213283,816.83,816.59,0.4458593]
[1754801082956,0.213283,816.83,816.45,1.63807608]
[1754801083253,0.213283,816.83,816.46,1.63807608]
[1754801083656,0.213283,816.83,816.43,1.63807608]
[1754801083957,0.213283,816.83,816.47,1.63807608]
[1754801084456,0.213283,816.83,816.48,1.63807608]
[1754801085154,0.213283,816.83,816.49,1.63807608]
[1754801085857,0.213283,816.83,816.5,1.63807608]
[1754801086159,0.213283,816.83,816.51,1.63807608]
[1754801086358,0.213283,816.83,816.46,1.63807608]
[1754801087158,0.213283,816.83,815.83,2.73234571]
[1754801087159,0.213283,816.83,816.47,1.63807608]
[1754801089257,0.213283,816.83,816.48,1.63807608]
[1754801090157,0.213283,816.83,816.49,1.63807608]
[1754801092159,0.213283,816.83,816.5,1.63807608]
[1754801092359,0.213283,816.83,816.49,0.61791031]
[1754801093165,0.213283,816.83,815.76,2.73234571]
[1754801093660,0.213283,816.83,815.81,2.73234571]
[1754801094867,0.213283,816.83,815.82,2.73234571]
[1754801095262,0.213283,816.83,815.8,2.73234571]
[1754801095961,0.213283,816.83,815.81,2.73234571]
[1754801096366,0.213283,816.83,815.91,2.73234571]
[1754801097464,0.213283,816.83,815.88,2.73234571]
[1754801102670,0.213283,816.83,815.92,2.73234571]
[1754801103170,0.213283,816.83,816.01,2.73234571]
[1754801103671,0.213283,816.83,816.02,2.73234571]
[1754801104570,0.213283,816.83,816.04,2.73234571]
[1754801105068,0.213283,816.83,815.81,2.73234571]
[1754801105468,0.213283,816.83,815.74,2.73234571]
[1754801106172,0.34,816.68,815.41,3.84070087]
[1754801106368,0.213283,816.83,815.41,3.84070087]
[1754801106574,0.213283,816.83,815.21,1.282]
[1754801106575,0.336,816.68,815.21,1.282]
[1754801106772,0.338,816.81,815.22,0.98839912]
[1754801107078,0.338,816.81,815.23,0.98839912]
[1754801107372,0.338,816.81,815.24,0.98839912]
[1754801107576,0.213283,816.83,815.25,0.98839912]
[1754801107776,0.213283,816.83,815.26,0.98839912]
[1754801107972,0.213283,816.83,815.27,0.98839912]
[1754801108177,0.338,816.81,815.28,0.98839912]
[1754801108374,0.338,816.81,815.29,0.98839912]
[1754801108572,0.213283,816.83,815.3,0.98839912]
[1754801108775,0.213283,816.83,815.31,0.98839912]
[1754801108976,0.336,816.68,815.21,1.282]
[1754801109276,0.307,816.8,815.51,2.73234571]
[1754801109477,0.414,816.8,815.51,2.73234571]
[1754801109677,0.414,816.8,815.5,2.73234571]
[1754801109877,0.307,816.8,815.5,2.73234571]
[1754801110074,0.414,816.8,815.5,2.73234571]
[1754801110678,0.307,816.8,815.49,2.73234571]
[1754801110877,0.5,816.81,815.49,2.73234571]
[1754801111374,0.5,816.81,815.5,2.73234571]
[1754801111777,0.5,816.81,815.49,2.73234571]
[1754801112479,0.213283,816.83,816.38,1.09414165]
[1754801112878,0.213283,816.83,816.4,1.09414165]
[1754801114074,0.213283,816.83,816.38,1.09414165]
[1754801114480,0.213283,816.83,816.39,1.09414165]
[1754801114781,0.213283,816.83,816.38,1.09414165]
[1754801115475,0.213283,816.83,816.39,1.09414165]
[1754801115676,0.213283,816.83,816.42,1.09414165]
[1754801115875,0.213283,816.83,816.44,1.09414165]
[1754801118885,0.213283,816.83,815.21,1.282]
[1754801118886,0.213283,816.83,816.48,1.09414165]
[1754801119182,0.213283,816.83,816.54,1.09414165]
[1754801119882,0.213283,816.83,816.54,0.38634717]
[1754801120185,0.213283,816.83,816.55,0.38634717]
[1754801121084,0.213283,816.83,816.37,1.64121247]
[1754801122288,0.213283,816.83,816.42,1.64121247]
[1754801122584,0.213283,816.83,816.43,1.64121247]
[1754801124991,0.213283,816.83,816.45,1.64121247]
[1754801126490,0.213283,816.83,816.44,1.64121247]
[1754801126792,0.213283,816.83,816.43,1.64121247]
[1754801130989,0.213283,816.83,816.1,1.64121247]
[1754801131189,0.213283,816.83,815.51,3.84070087]
[1754801131190,0.213283,816.83,816.07,1.64121247]
[1754801131895,0.213283,816.83,816.05,1.64121247]
[1754801132302,0.213283,816.83,816.07,1.64121247]
[1754801132502,0.5,816.81,816.04,1.64121247]
[1754801132696,0.5,816.81,816.03,1.64121247]
[1754801133099,0.5,816.78,816.03,1.64121247]
[1754801133296,0.5,816.78,816.04,1.64121247]
[1754801133500,0.5,816.78,816.38,1.64121247]
[1754801133802,0.5,816.78,815.73,2.73234571]
[1754801134199,0.5,816.78,815.79,2.73234571]
[1754801134699,0.5,816.78,815.75,2.73234571]
[1754801135099,0.5,816.78,815.71,2.73234571]
[1754801135504,0.42,816.71,815.71,2.73234571]
[1754801135703,0.292,816.71,815.71,2.73234571]
[1754801135898,0.342,816.67,815.62,2.73234571]
[1754801136201,0.342,816.7,815.62,2.73234571]
[1754801136399,0.42,816.71,815.61,2.73234571]
[1754801136603,0.293,816.71,815.61,2.73234571]
[1754801136804,0.421,816.71,815.63,2.73234571]
[1754801137202,0.401,816.71,815.63,2.73234571]
[1754801137403,0.421,816.71,815.64,2.73234571]
[1754801137802,0.5,816.78,815.66,2.73234571]
[1754801138000,0.421,816.72,815.66,2.73234571]
[1754801138300,0.421,816.72,815.65,2.73234571]
[1754801139501,0.421,816.72,815.66,2.73234571]
[1754801140005,0.421,816.72,815.65,2.73234571]
[1754801140502,0.421,816.72,815.66,2.73234571]
[1754801140702,0.344,816.69,815.66,2.73234571]
[1754801141003,0.421,816.72,815.66,2.73234571]
[1754801141408,0.421,816.72,815.65,2.73234571]
[1754801141908,0.421,816.72,815.54,2.73234571]
[1754801142606,0.421,816.72,815.6,2.73234571]
[1754801142806,0.401,816.72,815.6,2.73234571]
[1754801143005,0.344,816.69,815.6,2.73234571]
[1754801143305,0.421,816.72,815.6,2.73234571]
[1754801143609,0.421,816.72,815.48,2.73234571]
[1754801144205,0.344,816.71,815.47,2.73234571]
[1754801144408,0.5,816.78,815.47,2.73234571]
[1754801144608,0.421,816.72,815.46,2.73234571]
[1754801145106,0.313,816.72,815.47,2.73234571]
[1754801145308,0.421,816.72,815.47,2.73234571]
[1754801145508,0.313,816.72,815.47,2.73234571]
[1754801145812,0.421,816.72,815.45,2.73234571]
[1754801146708,0.313,816.72,815.44,2.73234571]
[1754801147107,0.5,816.78,815.44,2.73234571]
[1754801147307,0.342,816.73,815.44,2.73234571]
[1754801147610,0.42,816.74,815.44,2.73234571]
[1754801148411,0.42,816.74,814.55,5.48671553]
[1754801148412,0.42,816.74,815.45,2.73234571]
[1754801148807,0.42,816.74,815.34,2.73234571]
[1754801149010,0.5,816.61,815.34,2.73234571]
[1754801149513,0.5,816.56,815.24,2.73234571]
[1754801149812,0.5,816.56,815.46,2.73234571]
[1754801150007,0.5,816.56,816.21,1.09338414]
[1754801150309,0.5,816.56,816.21,0.42488201]
[1754801150812,0.5,816.56,815.44,2.73234571]
[1754801151013,0.5,816.56,815.37,2.73234571]
[1754801151214,0.414,816.47,815.37,2.73234571]
[1754801151513,0.307,816.47,815.41,2.73234571]
[1754801152008,0.307,816.47,815.37,2.73234571]
[1754801152408,0.5,816.56,815.37,2.73234571]
[1754801152608,0.5,816.59,815.09,2.73234571]
[1754801152912,0.5,816.69,815.1,1.02154827]
[1754801153113,0.292,816.59,815.11,1.02154827]
[1754801153314,0.414,816.59,815.12,1.02154827]
[1754801153614,0.414,816.59,815.13,1.02154827]
[1754801153815,0.414,816.59,815.88,1.63866354]
[1754801154215,0.336,816.65,815.88,1.63866354]
[1754801154412,0.336,816.65,815.87,1.63866354]
[1754801154615,0.336,816.65,815.88,1.63866354]
[1754801154915,0.5,816.69,815.88,1.63866354]
[1754801155315,0.5,816.69,815.87,1.63866354]
[1754801155515,0.307,816.64,815.87,1.63866354]
[1754801155811,0.307,816.64,815.91,1.63866354]
[1754801156012,0.307,816.64,815.79,1.63866354]
[1754801156917,0.307,816.64,815.77,1.63866354]
[1754801157412,0.307,816.64,815.76,1.63866354]
[1754801157617,0.307,816.41,815.73,1.63866354]
[1754801157815,0.307,816.41,815.72,1.63866354]
[1754801158018,0.25,816.34,815.73,1.63866354]
[1754801158317,0.25,816.34,815.71,1.63866354]
[1754801159420,0.25,816.34,815.7,1.63866354]
[1754801161117,0.25,816.34,815.69,1.63866354]
[1754801161717,0.36,816.34,815.69,1.63866354]
[1754801162217,0.25,816.34,815.54,1.63866354]
[1754801163020,0.36,816.34,815.54,1.63866354]
[1754801163321,0.25,816.34,815.53,1.63866354]
[1754801163520,0.36,816.34,815.67,1.63866354]
[1754801163719,0.25,816.34,815.67,1.63866354]
[1754801164222,0.25,816.34,815.66,1.63866354]
[1754801165322,0.25,816.34,815.67,1.63866354]
[1754801165822,0.25,816.34,815.66,1.63866354]
[1754801167219,0.25,816.34,815.65,1.63866354]
[1754801167423,0.25,816.34,815.66,1.63866354]
[1754801167821,0.25,816.34,815.67,1.63866354]
[1754801168121,0.25,816.34,815.66,1.63866354]
[1754801169323,0.25,816.34,815.64,1.63866354]
[1754801170024,0.25,816.34,815.63,1.63866354]
[1754801170324,0.25,816.34,815.04,2.73234571]
[1754801170325,0.25,816.34,815.62,1.63866354]
[1754801170520,0.25,816.34,815.44,1.63866354]
[1754801170719,0.25,816.34,815.03,2.73234571]
[1754801170720,0.25,816.34,815.32,1.63866354]
[1754801171621,0.25,816.34,814.66,0.967]
[1754801171622,0.25,816.34,815.34,1.63866354]
[1754801172221,0.25,816.34,815.33,1.63866354]
[1754801172425,0.25,816.34,815.46,1.63866354]
[1754801173822,0.5,816.49,815.46,1.63866354]
[1754801174028,0.25,816.43,815.46,1.63866354]
[1754801177931,0.361,816.43,815.46,1.63866354]
[1754801178231,0.25,816.43,815.46,1.63866354]
[1754801179431,0.361,816.43,815.47,1.63866354]
[1754801179630,0.361,816.43,815.41,1.63866354]
[1754801179926,0.361,816.43,815.39,1.63866354]
[1754801180126,0.361,816.43,815.67,1.0900299]
[1754801180629,0.361,816.43,815.7,1.0900299]
[1754801180830,0.361,816.43,815.75,1.0900299]
[1754801181030,0.361,816.43,815.73,1.0900299]
[1754801181231,0.361,816.43,815.72,1.0900299]
[1754801182133,0.361,816.43,815.74,1.0900299]
[1754801182429,0.361,816.43,815.76,1.0900299]
[1754801183326,0.361,816.43,815.77,1.0900299]
[1754801184227,0.361,816.43,815.78,1.0900299]
[1754801184431,0.361,816.43,815.81,1.0900299]
[1754801185333,0.361,816.43,815.83,1.0900299]
[1754801185532,0.361,816.43,815.82,1.0900299]
[1754801186332,0.361,816.43,815.83,1.0900299]
[1754801186734,0.361,816.43,815.84,1.0900299]
[1754801187333,0.361,816.43,815.85,1.0900299]
[1754801187529,0.361,816.43,815.79,1.0900299]
[1754801188331,0.361,816.43,815.8,1.0900299]
[1754801189336,0.361,816.43,815.85,1.0900299]
[1754801190237,0.361,816.43,815.86,1.0900299]
[1754801190437,0.25,816.43,815.88,1.0900299]
[1754801190834,0.25,816.43,815.89,1.0900299]
[1754801191137,0.25,816.43,815.92,1.0900299]
[1754801191338,0.25,816.43,815.93,1.0900299]
[1754801191635,0.25,816.43,815.94,1.0900299]
[1754801192334,0.25,816.43,815.91,1.0900299]
[1754801193036,0.25,816.43,815.88,1.0900299]
[1754801193234,0.25,816.43,815.89,1.0900299]
[1754801193235,0.36,816.43,815.89,1.0900299]
[1754801194443,0.36,816.43,815.88,1.0900299]
[1754801195041,0.36,816.43,815.84,1.0900299]
[1754801196338,0.36,816.43,815.85,1.0900299]
[1754801196737,0.469,816.43,815.85,1.0900299]
[1754801197041,0.36,816.43,815.85,1.0900299]
[1754801197440,0.36,816.43,815.88,1.0900299]
[1754801198543,0.36,816.43,815.89,1.0900299]
[1754801198839,0.25,816.43,815.91,1.0900299]
[1754801199443,0.25,816.43,815.68,1.63866354]
[1754801199444,0.25,816.43,815.92,1.0900299]
[1754801201243,0.25,816.43,815.93,1.0900299]
[1754801202347,0.25,816.43,815.79,1.0900299]